[Event "Titled Tuesday Blitz May 03 Early 2022"]
[White "Paravyan, David"]
[Black "Vysochin, Spartak"]
[WhiteFideId "4194985"]
[BlackFideId "14103516"]
[WhiteElo "2569"]
[BlackElo "2385"]
[Result "1-0"]
[Round "08"]
[TimeControl "180+1"]
[Date "2022.05.03"]
[WhiteClock "0:02:02"]
[BlackClock "0:00:01"]

1. e4 {[%clk 0:03:00]}  e6 {[%clk 0:02:59]} 2. d4 {[%clk 0:03:01]}  d5 {[%clk 0:02:56]} 3. Nc3 {[%clk 0:03:02]}  Nc6 {[%clk 0:02:52]} 4. Nf3 {[%clk 0:03:01]}  Nf6 {[%clk 0:02:47]} 5. exd5 {[%clk 0:03:02]}  exd5 {[%clk 0:02:46]} 6. Bb5 {[%clk 0:03:02]}  Bb4 {[%clk 0:02:43]} 7. O-O {[%clk 0:03:00]}  O-O {[%clk 0:02:42]} 8. Bg5 {[%clk 0:02:58]}  Bxc3 {[%clk 0:02:42]} 9. bxc3 {[%clk 0:02:59]}  Bg4 {[%clk 0:02:41]} 10. h3 {[%clk 0:02:59]}  Bh5 {[%clk 0:02:40]} 11. g4 {[%clk 0:02:55]}  Bg6 {[%clk 0:02:40]} 12. Ne5 {[%clk 0:02:55]}  Qd6 {[%clk 0:02:30]} 13. Bxc6 {[%clk 0:02:41]}  bxc6 {[%clk 0:02:29]} 14. f3 {[%clk 0:02:41]}  Nd7 {[%clk 0:02:03]} 15. Bf4 {[%clk 0:02:38]}  Nxe5 {[%clk 0:02:02]} 16. dxe5 {[%clk 0:02:36]}  Qe7 {[%clk 0:01:21]} 17. Bg3 {[%clk 0:02:30]}  f6 {[%clk 0:01:02]} 18. Qd4 {[%clk 0:02:27]}  Bxc2 {[%clk 0:00:44]} 19. Rae1 {[%clk 0:02:26]}  Rad8 {[%clk 0:00:19]} 20. exf6 {[%clk 0:02:22]}  Qxf6 {[%clk 0:00:19]} 21. Bxc7 {[%clk 0:02:23]}  Rc8 {[%clk 0:00:16]} 22. Be5 {[%clk 0:02:20]}  Qg6 {[%clk 0:00:15]} 23. Qc5 {[%clk 0:02:17]}  Bd3 {[%clk 0:00:13]} 24. Rf2 {[%clk 0:02:18]}  Rce8 {[%clk 0:00:12]} 25. Re3 {[%clk 0:02:18]}  Bb1 {[%clk 0:00:10]} 26. Kg2 {[%clk 0:02:17]}  Rf7 {[%clk 0:00:10]} 27. Bg3 {[%clk 0:02:15]}  Ref8 {[%clk 0:00:09]} 28. a3 {[%clk 0:02:13]}  h5 {[%clk 0:00:09]} 29. Qd6 {[%clk 0:02:11]}  hxg4 {[%clk 0:00:09]} 30. hxg4 {[%clk 0:02:10]}  Qxd6 {[%clk 0:00:09]} 31. Bxd6 {[%clk 0:02:11]}  Rd8 {[%clk 0:00:09]} 32. Bc5 {[%clk 0:02:11]}  a6 {[%clk 0:00:09]} 33. Rb2 {[%clk 0:02:11]}  Bg6 {[%clk 0:00:08]} 34. Kg3 {[%clk 0:02:11]}  Rdd7 {[%clk 0:00:05]} 35. Rb6 {[%clk 0:02:11]}  Rf6 {[%clk 0:00:06]} 36. Rxa6 {[%clk 0:02:11]}  Rb7 {[%clk 0:00:06]} 37. a4 {[%clk 0:02:11]}  Rb1 {[%clk 0:00:04]} 38. a5 {[%clk 0:02:10]}  Rg1+ {[%clk 0:00:04]} 39. Kh2 {[%clk 0:02:09]}  Rf1 {[%clk 0:00:03]} 40. Kg2 {[%clk 0:02:09]}  Ra1 {[%clk 0:00:02]} 41. Ra7 {[%clk 0:02:08]}  Rf7 {[%clk 0:00:01]} 42. Ra8+ {[%clk 0:02:07]}  Kh7 {[%clk 0:00:02]} 43. Ree8 {[%clk 0:02:07]}  Ra2+ {[%clk 0:00:02]} 44. Kg3 {[%clk 0:02:07]}  Bd3 {[%clk 0:00:03]} 45. f4 {[%clk 0:02:02]}  Rc2 {[%clk 0:00:02]} 46. f5 {[%clk 0:02:02]}  Rxc3 {[%clk 0:00:01]} 47. Rh8# {[%clk 0:02:02]} 1-0


[Site "https://www.chess.com"]

[Event "Titled Tuesday Blitz May 03 Early 2022"]
[White "Perez Gormaz, Matias"]
[Black "Stevens, Christian"]
[WhiteFideId "3406342"]
[BlackFideId "2604450"]
[WhiteElo "2322"]
[BlackElo "2513"]
[Result "1-0"]
[Round "08"]
[TimeControl "180+1"]
[Date "2022.05.03"]
[WhiteClock "0:01:06"]
[BlackClock "0:00:01"]

1. e4 {[%clk 0:03:00]}  c5 {[%clk 0:02:56]} 2. Nf3 {[%clk 0:03:01]}  e6 {[%clk 0:02:56]} 3. g3 {[%clk 0:03:01]}  Nc6 {[%clk 0:02:53]} 4. Bg2 {[%clk 0:03:01]}  Nf6 {[%clk 0:02:52]} 5. Qe2 {[%clk 0:03:01]}  e5 {[%clk 0:02:45]} 6. O-O {[%clk 0:02:59]}  Be7 {[%clk 0:02:44]} 7. c3 {[%clk 0:02:59]}  d6 {[%clk 0:02:38]} 8. Rd1 {[%clk 0:02:59]}  Bg4 {[%clk 0:02:37]} 9. h3 {[%clk 0:02:47]}  Bh5 {[%clk 0:02:33]} 10. d3 {[%clk 0:02:36]}  O-O {[%clk 0:02:30]} 11. Nbd2 {[%clk 0:02:36]}  Re8 {[%clk 0:02:27]} 12. Nc4 {[%clk 0:02:28]}  Bf8 {[%clk 0:02:00]} 13. Bg5 {[%clk 0:02:26]}  h6 {[%clk 0:01:58]} 14. Bxf6 {[%clk 0:02:26]}  Qxf6 {[%clk 0:01:57]} 15. Ne3 {[%clk 0:02:27]}  Ne7 {[%clk 0:01:48]} 16. g4 {[%clk 0:02:27]}  Bg6 {[%clk 0:01:47]} 17. a4 {[%clk 0:02:24]}  Bh7 {[%clk 0:01:42]} 18. Qc2 {[%clk 0:02:18]}  Qe6 {[%clk 0:01:29]} 19. Nh4 {[%clk 0:02:07]}  Rab8 {[%clk 0:01:08]} 20. Ra3 {[%clk 0:01:48]}  h5 {[%clk 0:00:45]} 21. a5 {[%clk 0:01:26]}  hxg4 {[%clk 0:00:42]} 22. hxg4 {[%clk 0:01:26]}  Qf6 {[%clk 0:00:28]} 23. Nhf5 {[%clk 0:01:21]}  g6 {[%clk 0:00:17]} 24. Nxe7+ {[%clk 0:01:17]}  Bxe7 {[%clk 0:00:11]} 25. Nd5 {[%clk 0:01:18]}  Qg5 {[%clk 0:00:11]} 26. Qe2 {[%clk 0:01:18]}  Kg7 {[%clk 0:00:10]} 27. d4 {[%clk 0:01:14]}  exd4 {[%clk 0:00:06]} 28. cxd4 {[%clk 0:01:14]}  Bf6 {[%clk 0:00:06]} 29. f4 {[%clk 0:01:10]}  Qh4 {[%clk 0:00:01]} 30. dxc5 {[%clk 0:01:06]} 1-0


[Site "https://www.chess.com"]

[Event "Titled Tuesday Blitz May 03 Early 2022"]
[White "Petre, Nad-Titus"]
[Black "Warchol, Kamil"]
[WhiteFideId "1204165"]
[BlackFideId "21858241"]
[WhiteElo "2354"]
[BlackElo "1910"]
[Result "0-1"]
[Round "08"]
[TimeControl "180+1"]
[Date "2022.05.03"]
[WhiteClock "0:00:04"]
[BlackClock "0:00:09"]

1. e4 {[%clk 0:03:00]}  c5 {[%clk 0:02:59]} 2. Nc3 {[%clk 0:03:01]}  a6 {[%clk 0:02:59]} 3. g3 {[%clk 0:03:01]}  b5 {[%clk 0:02:59]} 4. Bg2 {[%clk 0:03:01]}  Bb7 {[%clk 0:03:00]} 5. d3 {[%clk 0:03:02]}  e6 {[%clk 0:03:01]} 6. Nh3 {[%clk 0:03:03]}  Be7 {[%clk 0:02:59]} 7. O-O {[%clk 0:03:03]}  h5 {[%clk 0:02:59]} 8. f4 {[%clk 0:03:03]}  Nc6 {[%clk 0:02:59]} 9. f5 {[%clk 0:03:03]}  Ne5 {[%clk 0:02:28]} 10. Kh1 {[%clk 0:02:36]}  b4 {[%clk 0:02:02]} 11. Ne2 {[%clk 0:02:20]}  h4 {[%clk 0:01:59]} 12. fxe6 {[%clk 0:02:15]}  dxe6 {[%clk 0:01:46]} 13. Be3 {[%clk 0:02:11]}  Nf6 {[%clk 0:01:29]} 14. b3 {[%clk 0:01:55]}  Neg4 {[%clk 0:01:09]} 15. Bg1 {[%clk 0:01:55]}  Nd7 {[%clk 0:01:08]} 16. Qd2 {[%clk 0:01:21]}  Bg5 {[%clk 0:01:04]} 17. Qxg5 {[%clk 0:01:15]}  Qxg5 {[%clk 0:00:54]} 18. Nxg5 {[%clk 0:01:16]}  hxg3 {[%clk 0:00:53]} 19. Nxg3 {[%clk 0:01:09]}  Nde5 {[%clk 0:00:54]} 20. h3 {[%clk 0:01:01]}  Rc8 {[%clk 0:00:49]} 21. Bf3 {[%clk 0:00:42]}  Nxf3 {[%clk 0:00:41]} 22. Rxf3 {[%clk 0:00:42]}  Ne5 {[%clk 0:00:42]} 23. Rff1 {[%clk 0:00:39]}  Ke7 {[%clk 0:00:41]} 24. Kg2 {[%clk 0:00:37]}  Rh6 {[%clk 0:00:39]} 25. Nf3 {[%clk 0:00:32]}  Ng6 {[%clk 0:00:38]} 26. Be3 {[%clk 0:00:26]}  Rhh8 {[%clk 0:00:37]} 27. h4 {[%clk 0:00:19]}  f6 {[%clk 0:00:35]} 28. h5 {[%clk 0:00:18]}  Nf8 {[%clk 0:00:33]} 29. Nh2 {[%clk 0:00:17]}  Nd7 {[%clk 0:00:33]} 30. Kf2 {[%clk 0:00:15]}  Ne5 {[%clk 0:00:31]} 31. Ke2 {[%clk 0:00:14]}  g6 {[%clk 0:00:31]} 32. Bf4 {[%clk 0:00:13]}  gxh5 {[%clk 0:00:29]} 33. Bxe5 {[%clk 0:00:13]}  fxe5 {[%clk 0:00:30]} 34. Nf3 {[%clk 0:00:11]}  h4 {[%clk 0:00:29]} 35. Nh1 {[%clk 0:00:12]}  h3 {[%clk 0:00:28]} 36. Nxe5 {[%clk 0:00:11]}  Rh7 {[%clk 0:00:23]} 37. Ng6+ {[%clk 0:00:10]}  Kd7 {[%clk 0:00:22]} 38. Rf3 {[%clk 0:00:08]}  Rg8 {[%clk 0:00:22]} 39. Ne5+ {[%clk 0:00:08]}  Kd6 {[%clk 0:00:22]} 40. Nf7+ {[%clk 0:00:07]}  Ke7 {[%clk 0:00:23]} 41. Ne5 {[%clk 0:00:08]}  Kd6 {[%clk 0:00:23]} 42. d4 {[%clk 0:00:06]}  cxd4 {[%clk 0:00:23]} 43. Nc4+ {[%clk 0:00:06]}  Ke7 {[%clk 0:00:24]} 44. Raf1 {[%clk 0:00:05]}  Bxe4 {[%clk 0:00:24]} 45. Rf4 {[%clk 0:00:05]}  Bg2 {[%clk 0:00:21]} 46. Re1 {[%clk 0:00:03]}  h2 {[%clk 0:00:18]} 47. Rxd4 {[%clk 0:00:03]}  Bc6 {[%clk 0:00:15]} 48. Red1 {[%clk 0:00:03]}  Rg1 {[%clk 0:00:15]} 49. Ne5 {[%clk 0:00:03]}  Bd5 {[%clk 0:00:11]} 50. c4 {[%clk 0:00:03]}  bxc3 {[%clk 0:00:10]} 51. Kd3 {[%clk 0:00:04]}  Rxd1+ {[%clk 0:00:09]} 0-1


[Site "https://www.chess.com"]

[Event "Titled Tuesday Blitz May 03 Early 2022"]
[White "Piesik, Piotr"]
[Black "Melian, Juan Sebastian"]
[WhiteFideId "1136194"]
[BlackFideId "3706575"]
[WhiteElo "2190"]
[BlackElo "1842"]
[Result "1-0"]
[Round "08"]
[TimeControl "180+1"]
[Date "2022.05.03"]
[WhiteClock "0:00:19"]
[BlackClock "0:00:15"]

1. Nf3 {[%clk 0:03:00]}  d5 {[%clk 0:02:56]} 2. g3 {[%clk 0:03:00]}  g6 {[%clk 0:02:56]} 3. Bg2 {[%clk 0:03:01]}  Bg7 {[%clk 0:02:56]} 4. d4 {[%clk 0:03:01]}  Nd7 {[%clk 0:02:56]} 5. O-O {[%clk 0:03:02]}  Ngf6 {[%clk 0:02:55]} 6. a4 {[%clk 0:02:59]}  a5 {[%clk 0:02:51]} 7. Bf4 {[%clk 0:02:53]}  O-O {[%clk 0:02:50]} 8. Na3 {[%clk 0:02:50]}  c6 {[%clk 0:02:44]} 9. c4 {[%clk 0:02:50]}  dxc4 {[%clk 0:02:38]} 10. Nxc4 {[%clk 0:02:51]}  Nd5 {[%clk 0:02:38]} 11. Bd2 {[%clk 0:02:48]}  N7f6 {[%clk 0:02:30]} 12. Nfe5 {[%clk 0:02:47]}  Nb4 {[%clk 0:02:22]} 13. Bc3 {[%clk 0:02:41]}  Be6 {[%clk 0:02:18]} 14. Qd2 {[%clk 0:02:37]}  Nfd5 {[%clk 0:02:15]} 15. e4 {[%clk 0:02:19]}  Nxc3 {[%clk 0:02:01]} 16. bxc3 {[%clk 0:02:01]}  Na6 {[%clk 0:02:00]} 17. Qe2 {[%clk 0:02:01]}  Rb8 {[%clk 0:01:56]} 18. Rfb1 {[%clk 0:01:57]}  Qc7 {[%clk 0:01:52]} 19. f4 {[%clk 0:01:57]}  Rfd8 {[%clk 0:01:49]} 20. Ne3 {[%clk 0:01:49]}  Bc8 {[%clk 0:01:26]} 21. Ra2 {[%clk 0:01:37]}  b5 {[%clk 0:01:25]} 22. Rd2 {[%clk 0:01:27]}  bxa4 {[%clk 0:01:15]} 23. Rxb8 {[%clk 0:01:23]}  Qxb8 {[%clk 0:01:09]} 24. Rb2 {[%clk 0:01:22]}  Qc7 {[%clk 0:01:06]} 25. Qc4 {[%clk 0:01:22]}  Be6 {[%clk 0:01:04]} 26. Qxa6 {[%clk 0:01:21]}  a3 {[%clk 0:01:03]} 27. Rb1 {[%clk 0:01:21]}  c5 {[%clk 0:01:03]} 28. d5 {[%clk 0:01:16]}  Bc8 {[%clk 0:01:04]} 29. Qc4 {[%clk 0:01:11]}  Bxe5 {[%clk 0:01:04]} 30. fxe5 {[%clk 0:01:11]}  Qxe5 {[%clk 0:01:04]} 31. Ra1 {[%clk 0:01:08]}  e6 {[%clk 0:01:00]} 32. Rxa3 {[%clk 0:01:05]}  exd5 {[%clk 0:01:00]} 33. Nxd5 {[%clk 0:01:05]}  Be6 {[%clk 0:00:59]} 34. Ra1 {[%clk 0:01:00]}  Rb8 {[%clk 0:00:44]} 35. Qxc5 {[%clk 0:00:55]}  Bxd5 {[%clk 0:00:41]} 36. exd5 {[%clk 0:00:53]}  Rb2 {[%clk 0:00:36]} 37. Qd4 {[%clk 0:00:28]}  Qe2 {[%clk 0:00:25]} 38. Qe4 {[%clk 0:00:28]}  Qf2+ {[%clk 0:00:18]} 39. Kh1 {[%clk 0:00:28]}  Re2 {[%clk 0:00:19]} 40. Qf3 {[%clk 0:00:28]}  Re1+ {[%clk 0:00:17]} 41. Rxe1 {[%clk 0:00:27]}  Qxe1+ {[%clk 0:00:18]} 42. Qf1 {[%clk 0:00:22]}  Qxc3 {[%clk 0:00:18]} 43. Qd1 {[%clk 0:00:20]}  a4 {[%clk 0:00:13]} 44. d6 {[%clk 0:00:20]}  a3 {[%clk 0:00:12]} 45. d7 {[%clk 0:00:19]}  a2 {[%clk 0:00:12]} 46. d8=Q+ {[%clk 0:00:19]}  Kg7 {[%clk 0:00:13]} 47. Q8d4+ {[%clk 0:00:20]}  Qxd4 {[%clk 0:00:13]} 48. Qxd4+ {[%clk 0:00:20]}  f6 {[%clk 0:00:14]} 49. Qa1 {[%clk 0:00:20]}  Kh6 {[%clk 0:00:15]} 50. Qxa2 {[%clk 0:00:20]}  f5 {[%clk 0:00:16]} 51. Qf7 {[%clk 0:00:20]}  Kg5 {[%clk 0:00:16]} 52. h4+ {[%clk 0:00:19]}  Kh6 {[%clk 0:00:16]} 53. Kh2 {[%clk 0:00:18]}  g5 {[%clk 0:00:16]} 54. Qf6+ {[%clk 0:00:18]}  Kh5 {[%clk 0:00:15]} 55. Qxg5# {[%clk 0:00:19]} 1-0


[Site "https://www.chess.com"]

[Event "Titled Tuesday Blitz May 03 Early 2022"]
[White "Pranav, V"]
[Black "Barria Zuniga, Daniel"]
[WhiteFideId "25060783"]
[BlackFideId "3400816"]
[WhiteElo "2349"]
[BlackElo "2414"]
[Result "1-0"]
[Round "08"]
[TimeControl "180+1"]
[Date "2022.05.03"]
[WhiteClock "0:01:59"]
[BlackClock "0:00:09"]

1. e4 {[%clk 0:03:00]}  e6 {[%clk 0:02:59]} 2. d4 {[%clk 0:02:59]}  d5 {[%clk 0:02:59]} 3. Bd3 {[%clk 0:03:00]}  Nc6 {[%clk 0:02:51]} 4. c3 {[%clk 0:02:58]}  e5 {[%clk 0:02:51]} 5. exd5 {[%clk 0:02:56]}  Qxd5 {[%clk 0:02:50]} 6. Nf3 {[%clk 0:02:56]}  exd4 {[%clk 0:02:41]} 7. O-O {[%clk 0:02:55]}  Bg4 {[%clk 0:02:38]} 8. Re1+ {[%clk 0:02:55]}  Nge7 {[%clk 0:02:34]} 9. Be4 {[%clk 0:02:55]}  Qd7 {[%clk 0:02:28]} 10. cxd4 {[%clk 0:02:43]}  O-O-O {[%clk 0:02:27]} 11. Qa4 {[%clk 0:02:43]}  Bxf3 {[%clk 0:02:19]} 12. Bxf3 {[%clk 0:02:43]}  Nxd4 {[%clk 0:02:08]} 13. Qxa7 {[%clk 0:02:42]}  Nxf3+ {[%clk 0:02:08]} 14. gxf3 {[%clk 0:02:43]}  Nc6 {[%clk 0:02:08]} 15. Qa8+ {[%clk 0:02:42]}  Nb8 {[%clk 0:02:07]} 16. Nc3 {[%clk 0:02:41]}  Qc6 {[%clk 0:02:00]} 17. Bf4 {[%clk 0:02:38]}  b6 {[%clk 0:01:56]} 18. Qxc6 {[%clk 0:02:12]}  Nxc6 {[%clk 0:01:57]} 19. Nb5 {[%clk 0:02:13]}  Nd4 {[%clk 0:01:48]} 20. Bxc7 {[%clk 0:02:06]}  Nxf3+ {[%clk 0:01:36]} 21. Kf1 {[%clk 0:02:00]}  Nxe1 {[%clk 0:01:32]} 22. Bxd8 {[%clk 0:02:00]}  Kxd8 {[%clk 0:01:11]} 23. Rd1+ {[%clk 0:01:59]}  Kc8 {[%clk 0:01:02]} 24. Rxe1 {[%clk 0:01:59]}  Bc5 {[%clk 0:01:01]} 25. a3 {[%clk 0:02:00]}  Rd8 {[%clk 0:01:00]} 26. b4 {[%clk 0:01:58]}  Bf8 {[%clk 0:01:00]} 27. Rc1+ {[%clk 0:01:58]}  Kb8 {[%clk 0:00:42]} 28. Rc6 {[%clk 0:01:57]}  Kb7 {[%clk 0:00:12]} 29. Rc7+ {[%clk 0:01:57]}  Ka6 {[%clk 0:00:12]} 30. a4 {[%clk 0:01:57]}  Ra8 {[%clk 0:00:11]} 31. Rxf7 {[%clk 0:01:57]}  Bxb4 {[%clk 0:00:08]} 32. Nc7+ {[%clk 0:01:57]}  Kb7 {[%clk 0:00:08]} 33. Nxa8+ {[%clk 0:01:58]}  Kxa8 {[%clk 0:00:09]} 34. Rxg7 {[%clk 0:01:59]} 1-0


[Site "https://www.chess.com"]

[Event "Titled Tuesday Blitz May 03 Early 2022"]
[White "Priyanka, K"]
[Black "Todorovic, Bojan"]
[WhiteFideId "5082986"]
[BlackFideId "917087"]
[WhiteElo "1905"]
[BlackElo "2266"]
[Result "1-0"]
[Round "08"]
[TimeControl "180+1"]
[Date "2022.05.03"]
[WhiteClock "0:00:21"]
[BlackClock "0:00:02"]

1. e4 {[%clk 0:03:00]}  e5 {[%clk 0:02:57]} 2. Nf3 {[%clk 0:03:00]}  Nc6 {[%clk 0:02:57]} 3. Bb5 {[%clk 0:03:00]}  Nf6 {[%clk 0:02:56]} 4. d3 {[%clk 0:02:59]}  Bc5 {[%clk 0:02:55]} 5. Nc3 {[%clk 0:02:50]}  O-O {[%clk 0:02:52]} 6. Bg5 {[%clk 0:02:41]}  h6 {[%clk 0:02:45]} 7. Bh4 {[%clk 0:02:36]}  Be7 {[%clk 0:02:40]} 8. Bxc6 {[%clk 0:02:29]}  dxc6 {[%clk 0:02:39]} 9. Nxe5 {[%clk 0:02:28]}  Nxe4 {[%clk 0:02:37]} 10. dxe4 {[%clk 0:02:17]}  Bxh4 {[%clk 0:02:35]} 11. Qxd8 {[%clk 0:02:14]}  Rxd8 {[%clk 0:02:30]} 12. Nd3 {[%clk 0:02:07]}  b6 {[%clk 0:02:21]} 13. O-O {[%clk 0:02:01]}  Ba6 {[%clk 0:02:17]} 14. Rfd1 {[%clk 0:02:01]}  Bf6 {[%clk 0:02:15]} 15. Nb4 {[%clk 0:01:50]}  Bb7 {[%clk 0:02:10]} 16. Rxd8+ {[%clk 0:01:45]}  Rxd8 {[%clk 0:02:09]} 17. Rd1 {[%clk 0:01:45]}  Rxd1+ {[%clk 0:02:05]} 18. Nxd1 {[%clk 0:01:46]}  Kf8 {[%clk 0:01:25]} 19. f4 {[%clk 0:01:41]}  Bd4+ {[%clk 0:01:00]} 20. Kf1 {[%clk 0:01:40]}  c5 {[%clk 0:01:00]} 21. Nd5 {[%clk 0:01:40]}  Ba6+ {[%clk 0:00:53]} 22. Ke1 {[%clk 0:01:37]}  c6 {[%clk 0:00:44]} 23. N5e3 {[%clk 0:01:34]}  Bf6 {[%clk 0:00:21]} 24. e5 {[%clk 0:01:31]}  Be7 {[%clk 0:00:21]} 25. Nf5 {[%clk 0:01:28]}  Bd8 {[%clk 0:00:13]} 26. Nc3 {[%clk 0:01:21]}  Bc7 {[%clk 0:00:12]} 27. Ne4 {[%clk 0:01:17]}  Bc8 {[%clk 0:00:10]} 28. Nfd6 {[%clk 0:01:16]}  Be6 {[%clk 0:00:10]} 29. c4 {[%clk 0:01:11]}  Ke7 {[%clk 0:00:06]} 30. f5 {[%clk 0:01:07]}  Bd7 {[%clk 0:00:05]} 31. g4 {[%clk 0:00:55]}  f6 {[%clk 0:00:05]} 32. e6 {[%clk 0:00:27]}  Bxd6 {[%clk 0:00:05]} 33. exd7 {[%clk 0:00:25]}  Kxd7 {[%clk 0:00:05]} 34. h3 {[%clk 0:00:25]}  Be5 {[%clk 0:00:04]} 35. b3 {[%clk 0:00:24]}  b5 {[%clk 0:00:03]} 36. Kd2 {[%clk 0:00:23]}  Bd4 {[%clk 0:00:02]} 37. Kd3 {[%clk 0:00:22]}  Kc7 {[%clk 0:00:02]} 38. Kc2 {[%clk 0:00:21]} 1-0


[Site "https://www.chess.com"]

[Event "Titled Tuesday Blitz May 03 Early 2022"]
[White "Puccini, Jack"]
[Black "Shohat, Yotam"]
[WhiteFideId "3213307"]
[BlackFideId "2813955"]
[WhiteElo "2352"]
[BlackElo "2119"]
[Result "0-1"]
[Round "08"]
[TimeControl "180+1"]
[Date "2022.05.03"]
[WhiteClock "0:00:02"]
[BlackClock "0:00:04"]

1. e4 {[%clk 0:03:00]}  c5 {[%clk 0:02:57]} 2. Nf3 {[%clk 0:03:00]}  Nc6 {[%clk 0:02:48]} 3. d4 {[%clk 0:03:00]}  cxd4 {[%clk 0:02:36]} 4. c3 {[%clk 0:03:01]}  Nf6 {[%clk 0:02:31]} 5. e5 {[%clk 0:02:58]}  Nd5 {[%clk 0:02:31]} 6. Bc4 {[%clk 0:02:59]}  Nb6 {[%clk 0:02:29]} 7. Bb3 {[%clk 0:02:58]}  d5 {[%clk 0:02:29]} 8. exd6 {[%clk 0:02:59]}  Qxd6 {[%clk 0:02:28]} 9. O-O {[%clk 0:02:59]}  e6 {[%clk 0:02:28]} 10. cxd4 {[%clk 0:02:54]}  Be7 {[%clk 0:02:28]} 11. Nc3 {[%clk 0:02:54]}  O-O {[%clk 0:02:27]} 12. Re1 {[%clk 0:02:55]}  Rd8 {[%clk 0:02:27]} 13. Be3 {[%clk 0:02:51]}  Bd7 {[%clk 0:02:09]} 14. Rc1 {[%clk 0:02:51]}  Rac8 {[%clk 0:02:07]} 15. Bc2 {[%clk 0:02:35]}  Nd5 {[%clk 0:01:54]} 16. Ne4 {[%clk 0:02:05]}  Qb8 {[%clk 0:01:51]} 17. Neg5 {[%clk 0:02:02]}  Nf6 {[%clk 0:01:32]} 18. a3 {[%clk 0:01:47]}  h6 {[%clk 0:01:26]} 19. Ne4 {[%clk 0:01:46]}  Nxe4 {[%clk 0:01:21]} 20. Bxe4 {[%clk 0:01:46]}  Bf6 {[%clk 0:01:21]} 21. Bb1 {[%clk 0:01:40]}  Be8 {[%clk 0:01:17]} 22. Qd3 {[%clk 0:01:38]}  Qd6 {[%clk 0:00:56]} 23. Qh7+ {[%clk 0:01:32]}  Kf8 {[%clk 0:00:53]} 24. Ba2 {[%clk 0:01:18]}  Nxd4 {[%clk 0:00:30]} 25. Bxd4 {[%clk 0:00:36]}  Rxc1 {[%clk 0:00:19]} 26. Rxc1 {[%clk 0:00:30]}  Bxd4 {[%clk 0:00:17]} 27. h3 {[%clk 0:00:20]}  Bxb2 {[%clk 0:00:16]} 28. Rc2 {[%clk 0:00:17]}  Bf6 {[%clk 0:00:13]} 29. Rd2 {[%clk 0:00:13]}  Qb6 {[%clk 0:00:12]} 30. Rc2 {[%clk 0:00:09]}  Bc6 {[%clk 0:00:09]} 31. Nd2 {[%clk 0:00:04]}  Ba4 {[%clk 0:00:06]} 32. Nc4 {[%clk 0:00:03]}  Qc5 {[%clk 0:00:04]} 33. Re2 {[%clk 0:00:03]}  Rd1+ {[%clk 0:00:04]} 34. Kh2 {[%clk 0:00:04]}  Qc7+ {[%clk 0:00:04]} 35. g3 {[%clk 0:00:04]}  Bc6 {[%clk 0:00:04]} 36. Qh8+ {[%clk 0:00:04]}  Ke7 {[%clk 0:00:04]} 37. f3 {[%clk 0:00:02]}  Bxf3 {[%clk 0:00:04]} 38. Rg2 {[%clk 0:00:02]}  Bxg2 {[%clk 0:00:04]} 39. Kxg2 {[%clk 0:00:03]}  Qc6+ {[%clk 0:00:05]} 40. Kf2 {[%clk 0:00:04]}  Bd4+ {[%clk 0:00:05]} 41. Ke2 {[%clk 0:00:04]}  Ra1 {[%clk 0:00:04]} 42. Qb8 {[%clk 0:00:04]}  Rxa2+ {[%clk 0:00:04]} 43. Kd3 {[%clk 0:00:05]}  Qf3+ {[%clk 0:00:04]} 44. Kxd4 {[%clk 0:00:05]}  Qd5+ {[%clk 0:00:04]} 45. Kc3 {[%clk 0:00:05]}  Rf2 {[%clk 0:00:03]} 46. Qc7+ {[%clk 0:00:05]}  Kf6 {[%clk 0:00:03]} 47. Qb8 {[%clk 0:00:02]}  Rf3+ {[%clk 0:00:03]} 48. Kb4 {[%clk 0:00:02]}  b6 {[%clk 0:00:04]} 49. Qf8 {[%clk 0:00:02]}  Qc5+ {[%clk 0:00:04]} 0-1


[Site "https://www.chess.com"]

[Event "Titled Tuesday Blitz May 03 Early 2022"]
[White "Rasulov, Vugar"]
[Black "Nakamura, Hikaru"]
[WhiteFideId "13402390"]
[BlackFideId "2016192"]
[WhiteElo "2560"]
[BlackElo "2850"]
[Result "0-1"]
[Round "08"]
[TimeControl "180+1"]
[Date "2022.05.03"]
[WhiteClock "0:00:42"]
[BlackClock "0:00:39"]

1. d4 {[%clk 0:03:00]}  Nf6 {[%clk 0:02:55]} 2. c4 {[%clk 0:03:01]}  g6 {[%clk 0:02:53]} 3. Nc3 {[%clk 0:03:00]}  Bg7 {[%clk 0:02:53]} 4. e4 {[%clk 0:03:01]}  d6 {[%clk 0:02:54]} 5. f3 {[%clk 0:03:00]}  O-O {[%clk 0:02:52]} 6. Be3 {[%clk 0:03:00]}  a6 {[%clk 0:02:51]} 7. Qd2 {[%clk 0:02:59]}  c6 {[%clk 0:02:51]} 8. Rc1 {[%clk 0:02:51]}  b5 {[%clk 0:02:52]} 9. c5 {[%clk 0:02:51]}  dxc5 {[%clk 0:02:50]} 10. dxc5 {[%clk 0:02:52]}  Qc7 {[%clk 0:02:50]} 11. Bf4 {[%clk 0:02:44]}  Qa7 {[%clk 0:02:49]} 12. Nge2 {[%clk 0:02:38]}  Nbd7 {[%clk 0:02:46]} 13. Nd4 {[%clk 0:02:31]}  e5 {[%clk 0:02:25]} 14. Nxc6 {[%clk 0:02:28]}  Qc7 {[%clk 0:02:25]} 15. Ne7+ {[%clk 0:02:23]}  Kh8 {[%clk 0:02:24]} 16. Ncd5 {[%clk 0:02:17]}  Nxd5 {[%clk 0:02:17]} 17. Nxd5 {[%clk 0:02:17]}  Qc6 {[%clk 0:02:18]} 18. Bh6 {[%clk 0:02:17]}  Nf6 {[%clk 0:02:18]} 19. Bxg7+ {[%clk 0:02:14]}  Kxg7 {[%clk 0:02:19]} 20. Nb4 {[%clk 0:02:04]}  Qc7 {[%clk 0:02:16]} 21. Be2 {[%clk 0:02:05]}  Be6 {[%clk 0:02:12]} 22. O-O {[%clk 0:01:56]}  Rfd8 {[%clk 0:02:08]} 23. Qc3 {[%clk 0:01:56]}  a5 {[%clk 0:02:04]} 24. Nd3 {[%clk 0:01:57]}  Rd4 {[%clk 0:02:01]} 25. Nxe5 {[%clk 0:01:40]}  Qxe5 {[%clk 0:01:58]} 26. f4 {[%clk 0:01:40]}  Nxe4 {[%clk 0:01:52]} 27. fxe5 {[%clk 0:01:35]}  Nxc3 {[%clk 0:01:52]} 28. Rxc3 {[%clk 0:01:36]}  b4 {[%clk 0:01:47]} 29. Rc2 {[%clk 0:01:29]}  Bxa2 {[%clk 0:01:45]} 30. c6 {[%clk 0:01:30]}  Be6 {[%clk 0:01:31]} 31. c7 {[%clk 0:01:24]}  a4 {[%clk 0:01:25]} 32. Ra1 {[%clk 0:01:24]}  a3 {[%clk 0:01:15]} 33. bxa3 {[%clk 0:01:24]}  b3 {[%clk 0:01:07]} 34. Rb2 {[%clk 0:01:24]}  Rc8 {[%clk 0:01:00]} 35. Rc1 {[%clk 0:01:24]}  Ra4 {[%clk 0:00:55]} 36. Bf3 {[%clk 0:01:11]}  Ra7 {[%clk 0:00:51]} 37. Bd1 {[%clk 0:00:42]}  Raxc7 {[%clk 0:00:46]} 38. Rcb1 {[%clk 0:00:42]}  Bf5 {[%clk 0:00:39]} 0-1


[Site "https://www.chess.com"]